bitfinex/quotes_BTCUSD_20220212
["timestamp","ask_amount","ask_price","bid_price","bid_amount"]
[1644665158608,0.84484386,42153.0,42148.0,0.08198031]
[1644665158810,0.84484386,42153.0,42151.0,0.23573291]
[1644665159011,0.84484386,42153.0,42152.0,0.0438]
[1644665159812,0.62580598,42153.0,42152.0,0.0438]
[1644665160008,0.67580598,42153.0,42152.0,0.0438]
[1644665160409,0.72153718,42154.0,42152.0,0.0438]
[1644665160612,0.72153718,42154.0,42153.0,0.3]
[1644665160613,0.69328893,42154.0,42153.0,0.3]
[1644665160811,0.69328893,42154.0,42153.0,0.0438]
[1644665160812,0.46295848,42154.0,42153.0,0.0438]
[1644665161512,0.39765848,42154.0,42153.0,0.27275695]
[1644665161963,0.0249552,42154.0,42153.0,0.27275695]
[1644665162161,0.0244552,42154.0,42153.0,0.27275695]
[1644665162363,0.0238552,42154.0,42153.0,1.52775695]
[1644665162560,0.00027369,42156.0,42154.0,0.75]
[1644665162761,0.00024138,42161.0,42155.0,0.103089]
[1644665163061,0.00184547,42162.0,42160.0,0.07484157]
[1644665163265,0.00184547,42162.0,42161.0,0.0438]
[1644665163560,0.00184547,42162.0,42160.0,0.05001259]
[1644665163761,0.00184547,42162.0,42161.0,0.0438]
[1644665163965,0.00024138,42166.0,42161.0,0.0438]
[1644665164159,0.0004614,42163.0,42161.0,0.0438]
[1644665164563,0.0004614,42163.0,42162.0,0.004]
[1644665165065,0.11184533,42169.0,42162.0,0.004]
[1644665165066,0.00024138,42167.0,42162.0,0.004]
[1644665165261,0.01,42169.0,42162.0,0.0478]
[1644665165262,0.00024138,42168.0,42162.0,0.0478]
[1644665165508,0.01,42169.0,42162.0,0.0478]
[1644665165509,0.0004614,42165.0,42162.0,0.0478]
[1644665166308,0.00024138,42166.0,42162.0,0.0478]
[1644665166508,0.00046139,42166.0,42162.0,0.0478]
[1644665167010,0.00046139,42166.0,42165.0,0.19353174]
[1644665167212,0.00046139,42166.0,42165.0,0.35211453]
[1644665167411,0.00046139,42166.0,42165.0,0.15858279]
[1644665167611,0.00024138,42168.0,42165.0,0.15858279]
[1644665167810,0.01,42169.0,42165.0,0.15858279]
[1644665168408,0.01,42169.0,42165.0,0.40556721]
[1644665170064,0.01046192,42169.0,42165.0,0.40556721]
[1644665170865,0.01046192,42169.0,42167.0,0.039014]
[1644665171064,0.01046192,42169.0,42168.0,0.08771656]
[1644665171065,0.01,42169.0,42168.0,0.08771656]
[1644665171264,0.01046192,42169.0,42168.0,0.0978]
[1644665171467,0.01046192,42169.0,42168.0,0.13626521]
[1644665171865,0.01046192,42169.0,42168.0,0.0978]
[1644665172070,0.01046192,42169.0,42168.0,0.14019024]
[1644665172268,0.01,42169.0,42168.0,0.0978]
[1644665172466,0.01,42169.0,42168.0,0.0478]
[1644665172670,0.01,42169.0,42168.0,0.004]
[1644665173113,0.06,42169.0,42168.0,0.004]
[1644665173313,0.01,42169.0,42168.0,0.004]
[1644665173512,0.28989743,42169.0,42168.0,0.004]
[1644665173713,0.33999743,42169.0,42168.0,0.004]
[1644665177359,0.06139667,42169.0,42168.0,0.004]
[1644665177762,0.01139667,42169.0,42168.0,9.004]
[1644665177962,0.01129667,42169.0,42168.0,9.004]
[1644665180613,0.00879667,42169.0,42168.0,9.004]
[1644665181212,0.00879667,42169.0,42168.0,9.054]
[1644665182611,0.00829667,42169.0,42168.0,9.24235777]
[1644665182818,0.00829667,42169.0,42168.0,9.054]
[1644665186260,0.00819667,42169.0,42168.0,9.054]
[1644665187459,0.00809667,42169.0,42168.0,9.054]
[1644665187660,0.00809667,42169.0,42168.0,9.05418107]
[1644665191767,0.00809667,42169.0,42168.0,9.51798107]
[1644665192366,0.00809667,42169.0,42168.0,9.70633804]
[1644665192766,0.00107916,42170.0,42169.0,0.75]
[1644665192967,0.00107916,42170.0,42169.0,0.7938]
[1644665193166,0.0001,42177.0,42169.0,0.7938]
[1644665193167,0.24776625,42181.0,42170.0,0.75]
[1644665193368,0.61956732,42184.0,42171.0,0.0438]
[1644665193369,0.20117468,42182.0,42171.0,0.0438]
[1644665193767,0.3682,42184.0,42171.0,0.23215697]
[1644665193966,0.3682,42184.0,42172.0,0.2420465]
[1644665194167,0.3682,42184.0,42178.0,0.07864536]
[1644665194168,0.00170503,42183.0,42178.0,0.07864536]
[1644665194368,0.10729071,42176.0,42174.0,0.06724227]
[1644665194967,0.10729071,42176.0,42175.0,0.0438]
[1644665195607,0.15729071,42176.0,42175.0,0.34946546]
[1644665196308,0.15729071,42176.0,42175.0,0.0438]
[1644665196713,0.10729071,42176.0,42175.0,0.15307]
[1644665196908,0.10729071,42176.0,42175.0,0.15707]
[1644665197708,0.06049071,42176.0,42175.0,0.15707]
[1644665198110,0.06049071,42176.0,42175.0,0.39827888]
[1644665198308,0.0001,42176.0,42175.0,0.49827888]
[1644665198606,0.0004263,42178.0,42175.0,0.25707]
[1644665198814,0.04659157,42178.0,42175.0,0.0978]
[1644665199008,0.00023913,42178.0,42175.0,0.0478]
[1644665199962,0.01,42179.0,42175.0,0.0478]
[1644665200163,0.01023913,42179.0,42175.0,0.0478]
[1644665200565,0.01023913,42179.0,42175.0,0.107071]
[1644665201166,0.01,42179.0,42175.0,0.107071]
[1644665201471,0.01025911,42179.0,42175.0,0.107071]
[1644665202265,0.01,42179.0,42175.0,0.2878]
[1644665202465,0.05659157,42179.0,42175.0,0.2878]
[1644665202663,0.0001,42178.0,42175.0,0.2878]
[1644665203109,0.0001,42178.0,42175.0,0.33203624]
[1644665203410,0.0001,42178.0,42176.0,0.00018098]
[1644665203611,0.04659157,42177.0,42176.0,0.00018098]
[1644665204208,0.04659157,42177.0,42176.0,0.00418098]
[1644665204409,0.04669157,42177.0,42176.0,0.00418098]
[1644665205410,0.27783179,42177.0,42176.0,0.00418098]
[1644665205809,0.04669157,42177.0,42176.0,0.00418098]
[1644665206866,0.04659157,42177.0,42176.0,0.00418098]
[1644665207067,0.04669157,42177.0,42176.0,0.00418098]
[1644665207266,0.0001,42177.0,42176.0,0.00418098]
[1644665207465,0.04669157,42177.0,42176.0,0.00418098]
[1644665208068,0.04659157,42177.0,42176.0,0.00418098]
[1644665208267,0.0001,42177.0,42176.0,0.00418098]
[1644665208667,0.04627186,42177.0,42176.0,0.00418098]
[1644665209666,0.04627186,42177.0,42176.0,0.04798098]
[1644665210517,0.04627186,42177.0,42172.0,0.08257155]
[1644665210717,0.04627186,42177.0,42172.0,0.13022692]
[1644665210916,0.08,42176.0,42172.0,0.08257155]
[1644665211117,0.0001,42175.0,42172.0,0.1195298]
[1644665211317,0.0801,42175.0,42172.0,0.08257155]
[1644665211516,0.0001,42174.0,42172.0,0.08257155]
[1644665212115,0.0001,42174.0,42172.0,0.05]
[1644665212320,0.0001,42174.0,42171.0,0.0438]
[1644665212516,0.10556932,42175.0,42172.0,0.7]
[1644665212918,0.12627186,42173.0,42172.0,0.7]
[1644665213116,0.08,42173.0,42172.0,0.38766655]
[1644665213518,0.12627186,42173.0,42172.0,0.33766655]
[1644665213722,0.08,42173.0,42172.0,0.33766655]
[1644665214167,0.13,42173.0,42172.0,0.33766655]
[1644665214763,0.13,42173.0,42172.0,0.38766655]
[1644665214962,0.13,42173.0,42172.0,0.42743728]
[1644665216465,0.00067545,42175.0,42173.0,0.75]
[1644665216665,0.00173175,42181.0,42175.0,0.75]
[1644665216866,0.00909091,42187.0,42176.0,0.08866939]
[1644665216867,0.00024246,42178.0,42176.0,0.08866939]
[1644665217069,0.00024246,42185.0,42176.0,0.08866939]
[1644665217266,0.00024246,42186.0,42176.0,0.13866939]
[1644665217469,0.00933337,42187.0,42178.0,0.06636506]
[1644665217768,0.00024246,42186.0,42183.0,0.04078292]
[1644665218017,0.00919091,42187.0,42184.0,0.0438]
[1644665218018,0.00943337,42187.0,42184.0,0.0438]
[1644665218216,0.00909091,42187.0,42184.0,0.07817762]
[1644665218617,0.00909091,42187.0,42184.0,0.12817762]
[1644665218820,0.00909091,42187.0,42184.0,0.0938]
[1644665219017,0.00858753,42189.0,42186.0,0.75]
[1644665219219,0.00858753,42189.0,42187.0,0.0438]
[1644665219420,0.00858753,42189.0,42187.0,0.13771244]
[1644665219622,0.12844901,42192.0,42188.0,0.75]
[1644665219819,0.12844901,42192.0,42189.0,0.0438]
[1644665220019,0.12844901,42192.0,42189.0,0.07996644]
[1644665220218,0.12844901,42192.0,42189.0,0.212289]
[1644665220420,0.04727186,42198.0,42191.0,0.04051951]
[1644665220620,0.04727186,42198.0,42192.0,0.0438]
[1644665220621,0.03027498,42193.0,42192.0,0.0438]
[1644665221419,0.03027498,42193.0,42192.0,0.11887601]
[1644665221670,0.03,42193.0,42192.0,0.11887601]
[1644665221965,0.00027681,42195.0,42193.0,0.75]
[1644665222169,0.00027681,42195.0,42194.0,0.0438]
[1644665222765,0.001,42198.0,42195.0,0.059239]
[1644665222965,0.001,42198.0,42196.0,0.0438]
[1644665222966,0.00027681,42197.0,42196.0,0.0438]
[1644665223966,0.001,42198.0,42196.0,0.0438]
[1644665224166,0.001,42198.0,42197.0,0.30675137]
[1644665224365,0.001,42198.0,42195.0,0.42589294]
[1644665224366,0.13115211,42196.0,42195.0,0.42589294]
[1644665224573,0.13115211,42196.0,42195.0,0.209239]
[1644665224967,0.05,42197.0,42196.0,0.85874789]
[1644665225168,0.05,42197.0,42196.0,0.90254789]
[1644665225412,0.00147193,42198.0,42196.0,0.90254789]
[1644665225612,0.00147193,42198.0,42197.0,0.31847266]
[1644665225913,0.00147193,42198.0,42197.0,0.55049915]
[1644665226314,0.001,42198.0,42197.0,0.65049915]
[1644665226513,0.001,42198.0,42197.0,0.1438]
[1644665226715,0.001,42198.0,42197.0,0.0438]
[1644665226913,0.001,42198.0,42197.0,0.34013251]
[1644665227114,0.001,42198.0,42197.0,0.0438]
[1644665230568,0.00108426,42198.0,42197.0,0.0438]
[1644665232069,0.00108426,42198.0,42197.0,0.33673781]
[1644665232367,0.00108426,42198.0,42197.0,0.45010665]
[1644665233320,0.00108426,42198.0,42197.0,0.0438]
[1644665233517,0.0007059,42200.0,42197.0,0.0438]
[1644665233721,0.00919091,42201.0,42199.0,0.07306185]
[1644665233916,0.00461094,42201.0,42200.0,0.65]
[1644665234116,0.00461094,42201.0,42200.0,0.753025]
[1644665234117,0.00436688,42201.0,42200.0,0.753025]
[1644665234516,0.00436688,42201.0,42200.0,1.01136562]
[1644665234718,0.00436688,42201.0,42200.0,1.16136562]
[1644665234920,0.00436688,42201.0,42200.0,1.34959211]
[1644665235321,0.00024406,42203.0,42200.0,1.34959211]
[1644665235322,0.00024406,42203.0,42201.0,0.75]
[1644665235519,0.00118984,42204.0,42202.0,0.0438]
[1644665235720,0.00118984,42204.0,42203.0,0.26418841]
[1644665235921,0.00118984,42204.0,42203.0,0.35798841]
[1644665236321,0.00118984,42204.0,42203.0,0.45798841]
[1644665236521,0.00118984,42204.0,42203.0,0.6462149]
[1644665236773,0.00118984,42204.0,42203.0,0.45798841]
[1644665236971,0.00118984,42204.0,42203.0,0.95339525]
[1644665237173,0.00118984,42204.0,42203.0,0.76516876]
[1644665237371,0.00118984,42204.0,42203.0,0.95339525]
[1644665238376,0.00118984,42204.0,42203.0,1.45339525]
[1644665238776,0.00027722,42206.0,42205.0,0.059216]
[1644665239072,0.00027722,42206.0,42205.0,0.48625657]
[1644665239073,0.00052211,42206.0,42205.0,0.48625657]
[1644665239273,0.00027722,42206.0,42205.0,0.58625657]
[1644665239473,0.00027722,42206.0,42205.0,0.77448306]
[1644665239673,0.051,42207.0,42205.0,0.39124249]
[1644665239876,0.051,42207.0,42205.0,0.203016]
[1644665240072,0.52654751,42208.0,42205.0,0.203016]
[1644665240272,0.52630262,42208.0,42205.0,0.203016]
[1644665240527,0.04627186,42206.0,42205.0,0.0438]
[1644665240720,0.05351602,42206.0,42204.0,0.18822649]
[1644665240918,0.00724416,42206.0,42205.0,0.04769398]
[1644665241120,0.05351602,42206.0,42203.0,0.103031]
[1644665241417,0.00724416,42206.0,42205.0,0.20858032]
[1644665241918,0.00724416,42206.0,42205.0,0.55229156]
[1644665242317,0.00724416,42206.0,42205.0,0.40238032]
[1644665242920,0.00724416,42206.0,42205.0,0.69939852]
[1644665244668,0.00724416,42206.0,42205.0,0.40238032]
[1644665244969,0.00674416,42206.0,42205.0,0.40238032]
[1644665245371,0.00256697,42206.0,42205.0,0.40238032]
[1644665245569,0.00256697,42206.0,42205.0,0.69797917]
[1644665246568,0.00256697,42206.0,42205.0,0.40238032]
[1644665246767,0.00256697,42206.0,42205.0,0.64238032]
[1644665246768,0.04883883,42206.0,42205.0,0.64238032]
[1644665246967,0.00256697,42206.0,42205.0,0.64238032]
[1644665248317,0.00256697,42206.0,42205.0,0.4338]
[1644665248516,0.00256697,42206.0,42205.0,0.24]
[1644665248717,0.05266697,42206.0,42205.0,0.24]
[1644665249916,0.05016697,42206.0,42205.0,0.24]
[1644665250122,0.05016697,42206.0,42205.0,0.29]
[1644665250418,0.00266697,42206.0,42205.0,0.3338]
[1644665250716,0.00256697,42206.0,42205.0,0.3338]
[1644665250919,0.00256697,42206.0,42205.0,0.4338]
[1644665254370,0.01506223,42204.0,42201.0,0.118455]
[1644665254569,0.01506223,42204.0,42202.0,0.26722211]
[1644665254771,0.01506223,42204.0,42203.0,0.0438]
[1644665255169,0.01506223,42204.0,42203.0,0.103027]
[1644665255620,0.01506223,42204.0,42201.0,0.118455]
[1644665255821,0.19627186,42202.0,42194.0,0.21513616]
[1644665256020,0.19627186,42202.0,42192.0,0.44448063]
[1644665256021,0.04627186,42197.0,42193.0,0.18822649]
[1644665256216,0.04627186,42197.0,42192.0,0.18822649]
[1644665256618,0.20942589,42200.0,42191.0,0.19405632]
[1644665256817,0.04627186,42193.0,42191.0,0.19405632]
[1644665257017,0.04627186,42193.0,42190.0,0.21513616]
[1644665257217,0.24627186,42193.0,42186.0,0.1185]
[1644665257417,0.2,42193.0,42192.0,0.2399]
[1644665257617,0.00024489,42193.0,42192.0,0.2399]
[1644665257818,0.04627186,42193.0,42192.0,0.2399]
[1644665258218,0.29616057,42193.0,42192.0,0.2399]
[1644665258421,0.49616057,42193.0,42192.0,0.2399]
[1644665258627,0.82317838,42193.0,42192.0,0.2399]
[1644665258920,0.8215416,42193.0,42192.0,0.2399]
[1644665259573,0.8715416,42193.0,42192.0,0.2399]
[1644665259973,0.59616057,42193.0,42192.0,0.2399]
[1644665260172,0.59616057,42193.0,42192.0,0.2349]
[1644665260976,0.59616057,42193.0,42192.0,0.2299]
[1644665261279,0.65967603,42193.0,42192.0,0.2299]
[1644665261673,0.22188936,42193.0,42192.0,0.2299]
[1644665261873,0.2083739,42193.0,42192.0,0.2299]
[1644665262773,0.2084739,42193.0,42192.0,0.2299]
[1644665263020,0.1001,42193.0,42192.0,0.2299]
[1644665263223,0.0501,42193.0,42192.0,0.2299]
[1644665263421,0.0001,42193.0,42192.0,0.2299]
[1644665263825,0.00024489,42197.0,42192.0,0.2737]
[1644665264024,0.00034489,42197.0,42195.0,0.03740444]
[1644665264221,0.00034489,42197.0,42193.0,0.20923343]
[1644665264222,0.0001,42197.0,42196.0,0.0438]
[1644665264424,0.00034489,42197.0,42196.0,0.0438]
[1644665264621,0.0001,42197.0,42196.0,0.0438]
[1644665265721,0.14954446,42198.0,42196.0,0.0438]
[1644665266326,0.05,42197.0,42196.0,0.0438]
[1644665266872,0.05,42197.0,42193.0,0.03407244]
[1644665267071,0.05024489,42197.0,42193.0,0.04885536]
[1644665267271,0.00024489,42200.0,42194.0,0.03337671]
[1644665267472,0.05,42200.0,42195.0,0.03666887]
[1644665267672,0.14954446,42198.0,42192.0,0.2737]
[1644665267874,0.14954446,42194.0,42192.0,0.2299]
[1644665268271,0.19954446,42194.0,42192.0,0.2299]
[1644665269874,0.00043748,42202.0,42192.0,0.2299]
[1644665270076,0.00043748,42202.0,42193.0,0.33843162]
[1644665270077,0.00024668,42200.0,42193.0,0.33843162]
[1644665270277,0.14954446,42201.0,42193.0,0.43843162]
[1644665270522,0.00024668,42200.0,42197.0,0.20610449]
[1644665270721,0.14979114,42201.0,42198.0,0.0438]
[1644665270923,0.0001,42200.0,42199.0,0.07022573]
[1644665271124,0.00024668,42202.0,42199.0,0.11402573]
[1644665271125,0.00043751,42202.0,42199.0,0.11402573]
[1644665271322,0.00068419,42202.0,42199.0,0.11402573]
[1644665271526,0.00043751,42202.0,42199.0,0.11402573]
[1644665271923,0.00053751,42202.0,42199.0,0.0438]
[1644665272123,0.0001,42202.0,42199.0,0.0438]
[1644665272322,0.14964446,42202.0,42199.0,0.0438]
[1644665272522,0.0001,42201.0,42199.0,0.0438]
[1644665274175,0.14964446,42201.0,42199.0,0.0438]
[1644665274367,0.0001,42200.0,42199.0,0.0438]
[1644665274967,0.0001,42201.0,42199.0,0.0438]
[1644665275167,0.0001,42201.0,42200.0,0.48851205]
[1644665275372,0.00068509,42202.0,42200.0,0.64778798]
[1644665275568,0.00043841,42202.0,42200.0,0.39776918]
[1644665275768,0.00034668,42203.0,42200.0,0.39776918]
[1644665275971,0.00053841,42203.0,42200.0,0.33853418]
[1644665276170,0.00053841,42203.0,42201.0,0.29304214]
[1644665276370,0.00053841,42203.0,42202.0,0.0438]
[1644665276871,0.0001,42203.0,42202.0,0.0438]
[1644665277921,0.0501,42203.0,42202.0,0.0438]
[1644665278121,0.0501,42203.0,42202.0,0.08017424]
[1644665278323,0.0501,42203.0,42202.0,0.34038583]
[1644665278522,0.0501,42203.0,42202.0,0.07717362]
[1644665278723,0.0478,42203.0,42202.0,0.1438]
[1644665278923,0.0478,42203.0,42202.0,0.19230455]
[1644665279126,0.0001,42203.0,42202.0,0.1438]
[1644665279324,0.0001,42203.0,42202.0,0.18985188]
[1644665279525,0.0001,42203.0,42202.0,0.1438]
[1644665279724,0.0001,42203.0,42202.0,0.19151076]
[1644665279922,0.0001,42203.0,42202.0,0.2838]
[1644665280126,0.0001,42203.0,42202.0,0.31744294]
[1644665280327,0.0001,42203.0,42202.0,0.3838]
[1644665280725,0.0001,42203.0,42202.0,0.67664232]
[1644665281225,0.0501,42203.0,42202.0,0.67664232]
[1644665281429,0.53622223,42204.0,42203.0,0.6]
[1644665281681,0.53622223,42204.0,42203.0,0.6438]
[1644665281682,0.01506223,42204.0,42203.0,0.6438]
[1644665281976,0.01506223,42204.0,42203.0,0.7438]
[1644665282179,0.01506223,42204.0,42203.0,0.9272223]
[1644665284980,0.01506223,42204.0,42203.0,0.3272223]
[1644665285181,0.01506223,42204.0,42203.0,0.1834223]
[1644665285431,0.01506223,42204.0,42202.0,0.34]
[1644665285432,0.16460669,42204.0,42202.0,0.24]
[1644665285633,0.29781106,42201.0,42195.0,0.3018953]
[1644665285832,0.34805774,42201.0,42196.0,0.2004]
[1644665286331,0.34805774,42201.0,42195.0,0.118473]
[1644665286530,0.0001,42200.0,42195.0,0.118473]
[1644665287533,0.0001,42200.0,42195.0,0.18671051]
[1644665289972,0.0001,42200.0,42195.0,0.118473]
[1644665290668,0.0001,42200.0,42195.0,0.16422404]
[1644665290869,0.0001,42200.0,42198.0,0.07806691]
[1644665291072,0.0001,42200.0,42199.0,0.04027481]
[1644665291268,0.0001,42200.0,42198.0,0.12186691]
[1644665291969,0.0001,42200.0,42198.0,0.0438]
[1644665293322,0.0001,42200.0,42199.0,0.0669826]
[1644665293519,0.0001,42200.0,42199.0,0.0438]
[1644665296224,0.0001,42200.0,42197.0,0.14022147]
[1644665297369,0.0001,42200.0,42198.0,0.0438]
[1644665299370,0.00043883,42202.0,42200.0,0.75]
[1644665299570,0.00043883,42202.0,42201.0,0.16475914]
[1644665299867,0.01530891,42204.0,42202.0,0.059214]
[1644665300068,0.00044031,42203.0,42202.0,0.059214]
[1644665300267,0.00044031,42203.0,42202.0,0.5911023]
[1644665300529,0.00044031,42203.0,42202.0,0.33303502]
[1644665300727,0.00044031,42203.0,42202.0,0.43303502]
[1644665300928,0.01506223,42204.0,42202.0,0.43303502]
[1644665302431,0.01506223,42204.0,42203.0,0.05]
[1644665302631,0.01506223,42204.0,42203.0,0.0438]
[1644665302832,0.01506223,42204.0,42203.0,0.221437]
[1644665305677,0.01506223,42204.0,42203.0,1.55369031]
[1644665305875,0.01506223,42204.0,42203.0,1.65369031]
[1644665306075,0.01506223,42204.0,42203.0,1.83711261]
[1644665308143,0.01506223,42204.0,42203.0,0.5048593]
[1644665308545,0.01506223,42204.0,42203.0,0.321437]
[1644665309243,0.01506223,42204.0,42203.0,0.56329686]
[1644665312473,0.00236223,42204.0,42203.0,1.89555017]
[1644665312674,0.0006508,42208.0,42205.0,0.809214]
[1644665312876,0.0006508,42208.0,42206.0,0.4969964]
[1644665313074,0.0006508,42208.0,42207.0,0.61216781]
[1644665313379,0.00049262,42210.0,42208.0,0.75]
[1644665313577,0.00909091,42215.0,42211.0,0.08]
[1644665313578,0.0017894,42213.0,42211.0,0.08]
[1644665313775,0.0017894,42213.0,42212.0,1.62444731]
[1644665313975,0.00909091,42215.0,42214.0,0.08]
[1644665314173,0.01006651,42215.0,42214.0,0.40543925]
[1644665314376,0.01006651,42215.0,42214.0,0.77182748]
[1644665314576,0.01006651,42215.0,42214.0,0.76590774]
[1644665314975,0.01006651,42215.0,42214.0,0.58248544]
[1644665317326,0.22553728,42222.0,42216.0,0.08]
[1644665317525,0.05,42222.0,42218.0,0.08]
[1644665317724,0.03,42223.0,42220.0,0.198403]
[1644665317924,0.03,42223.0,42222.0,0.08]
[1644665318125,0.03,42223.0,42222.0,0.1238]
[1644665318324,0.17954446,42223.0,42222.0,0.1238]
[1644665318529,0.22954446,42223.0,42222.0,0.1238]
[1644665318725,0.52954446,42223.0,42222.0,0.1238]
[1644665318928,0.24759999,42221.0,42220.0,0.05]
[1644665319378,0.24759999,42221.0,42218.0,0.15]
[1644665319677,0.29759999,42221.0,42218.0,0.05]
[1644665319877,0.14954446,42219.0,42216.0,0.168413]
[1644665320176,0.19954446,42219.0,42216.0,0.168413]
[1644665320376,0.05,42219.0,42216.0,0.168413]
[1644665320777,0.44714445,42221.0,42216.0,0.168413]
[1644665320978,0.44714445,42221.0,42217.0,0.059206]
[1644665321378,0.29759999,42221.0,42217.0,0.059206]
[1644665321580,0.29807889,42221.0,42217.0,0.059206]
[1644665321778,0.44762335,42221.0,42218.0,0.04346205]
[1644665322079,0.50043458,42221.0,42219.0,0.04303557]
[1644665322280,0.50043458,42221.0,42217.0,0.059206]
[1644665322281,0.14954446,42219.0,42217.0,0.059206]
[1644665322480,0.0001,42218.0,42217.0,0.059206]
[1644665323323,0.0001,42218.0,42216.0,0.268413]
[1644665323524,0.0001,42218.0,42216.0,0.15]
[1644665324526,0.0001,42218.0,42216.0,0.29]
[1644665325125,0.0001,42218.0,42216.0,0.349213]
[1644665325327,0.0001,42218.0,42216.0,0.493013]
[1644665326528,0.0001,42218.0,42216.0,0.4338]
[1644665327383,0.0001,42218.0,42216.0,0.29]
[1644665332235,0.0001,42218.0,42217.0,0.04756413]
[1644665333237,0.26889139,42218.0,42217.0,0.04756413]
[1644665333637,0.26889139,42218.0,42216.0,0.32386189]
[1644665333638,0.0001,42218.0,42216.0,0.32386189]
[1644665335088,0.0001,42218.0,42216.0,0.33573694]
[1644665335287,0.0001,42218.0,42217.0,0.04087034]
[1644665335488,0.0001,42218.0,42216.0,0.32346416]
[1644665335990,0.0001,42218.0,42216.0,0.27346416]
[1644665336793,0.26833178,42218.0,42216.0,0.27346416]
[1644665336989,0.0001,42217.0,42216.0,0.27346416]
[1644665337190,0.26984719,42217.0,42216.0,0.27346416]
[1644665337389,0.31984719,42217.0,42216.0,0.27346416]
[1644665337590,0.39966873,42217.0,42216.0,0.24]
[1644665338224,0.47146029,42217.0,42216.0,0.24]
[1644665339025,0.19964446,42217.0,42216.0,0.24]
[1644665343275,0.19956951,42217.0,42216.0,0.24]
[1644665345179,0.14956951,42217.0,42216.0,0.24]
[1644665346237,0.36428663,42217.0,42216.0,0.24]
[1644665346536,0.41428663,42217.0,42216.0,0.24]
[1644665347136,0.41428663,42217.0,42216.0,0.23993973]
[1644665348940,0.41428663,42217.0,42208.0,0.3]
[1644665348941,0.29771031,42212.0,42208.0,0.3]
[1644665349183,0.0001,42211.0,42209.0,0.05]
[1644665349378,0.0001,42211.0,42208.0,0.059225]
[1644665349379,0.0001,42211.0,42210.0,0.0438]
[1644665349882,0.0001,42211.0,42203.0,0.24445322]
[1644665350077,0.0001,42211.0,42204.0,0.0438]
[1644665350276,0.14956951,42211.0,42204.0,0.0438]
[1644665350479,0.0001,42210.0,42205.0,0.07333397]
[1644665350677,0.05,42210.0,42206.0,0.0438]
[1644665350875,0.26291822,42209.0,42208.0,0.059225]
[1644665351077,0.26291822,42209.0,42208.0,0.103025]
[1644665351276,0.0501,42209.0,42208.0,0.103025]
[1644665351678,0.0001,42209.0,42208.0,0.103025]
[1644665352078,0.0001,42211.0,42208.0,0.103025]
[1644665352282,0.0001,42211.0,42208.0,0.34223794]
[1644665352928,0.0001,42211.0,42208.0,0.103025]
[1644665353327,0.14956951,42211.0,42208.0,0.103025]
[1644665353528,0.0001,42210.0,42208.0,0.103025]
[1644665353727,0.34771031,42212.0,42208.0,0.103025]
[1644665353728,0.0001,42211.0,42208.0,0.103025]
[1644665353929,0.0001,42211.0,42208.0,0.30184419]
[1644665354332,0.0001,42211.0,42208.0,0.40184419]
[1644665355933,0.0001,42211.0,42208.0,0.60248419]
[1644665356334,0.0001,42211.0,42208.0,0.403665]
[1644665356532,0.14956951,42211.0,42208.0,0.403665]
[1644665356785,0.0501,42210.0,42208.0,0.403665]
[1644665356983,0.0001,42209.0,42208.0,0.403665]
[1644665357185,0.0001,42209.0,42208.0,0.203025]
[1644665357383,0.0001,42209.0,42208.0,0.31310583]
[1644665357584,0.0001,42211.0,42208.0,0.31310583]
[1644665357787,0.0001,42211.0,42208.0,0.41310583]
[1644665357984,0.0001,42211.0,42208.0,0.65310583]
[1644665358187,0.14956951,42211.0,42208.0,0.65310583]
[1644665358387,0.0501,42210.0,42208.0,0.65310583]
[1644665358584,0.0001,42209.0,42208.0,0.65310583]
[1644665359587,0.0001,42211.0,42208.0,0.65310583]
[1644665362437,0.0002492,42217.0,42212.0,0.20491495]
[1644665362635,0.0002492,42218.0,42213.0,0.10301]
[1644665362834,0.00048171,42219.0,42213.0,0.10301]
[1644665363234,0.00073091,42219.0,42218.0,0.1915984]
[1644665363435,0.00048171,42219.0,42218.0,0.2353984]
[1644665363634,0.24784919,42221.0,42218.0,0.32055175]
[1644665363833,0.24759999,42221.0,42218.0,0.47976075]
[1644665364034,0.14946951,42220.0,42218.0,0.47976075]
[1644665364693,0.05,42220.0,42218.0,0.47976075]
[1644665365090,0.29833094,42221.0,42218.0,0.47976075]
[1644665365290,0.28947174,42221.0,42218.0,0.47976075]
[1644665365890,0.23947174,42221.0,42218.0,0.47976075]
[1644665366091,0.23898999,42221.0,42218.0,0.47976075]
[1644665366695,0.23898999,42221.0,42218.0,0.97976075]
[1644665366888,0.23898999,42221.0,42219.0,0.24107431]
[1644665367088,0.23898999,42221.0,42220.0,0.0438]
[1644665367290,0.23898999,42221.0,42220.0,0.381339]
[1644665367490,0.23898999,42221.0,42220.0,1.06943167]
[1644665367693,0.23908999,42221.0,42220.0,1.330493]
[1644665367933,0.23908999,42221.0,42220.0,1.33189267]
[1644665368235,0.23908999,42221.0,42220.0,1.57189267]
[1644665369134,0.23908999,42221.0,42220.0,1.77708867]
[1644665369433,0.23908999,42221.0,42220.0,1.57189267]
[1644665369837,0.23908999,42221.0,42220.0,1.60690172]
[1644665370233,0.22638999,42221.0,42220.0,1.60690172]
[1644665370436,0.22638999,42221.0,42220.0,1.57189267]
[1644665370637,0.03069486,42223.0,42221.0,0.75]
[1644665370840,0.0002508,42225.0,42224.0,0.059192]
[1644665371038,0.0002508,42225.0,42224.0,0.102992]
[1644665371236,0.001,42226.0,42224.0,0.102992]
[1644665371435,0.001,42226.0,42224.0,0.29108467]
[1644665371686,0.001,42226.0,42224.0,0.55184557]
[1644665371981,0.001,42226.0,42224.0,0.65184557]
[1644665372379,0.001,42226.0,42224.0,0.7216796]
[1644665373180,0.001,42226.0,42225.0,0.30311659]
[1644665373385,0.001,42226.0,42225.0,0.94691659]
[1644665373782,0.001,42226.0,42225.0,0.83189267]
[1644665377229,0.001,42226.0,42225.0,2.46946676]
[1644665377431,0.001,42226.0,42225.0,2.47054049]
[1644665377630,0.01561807,42229.0,42227.0,0.19140028]
[1644665377830,0.01561807,42229.0,42228.0,0.33995902]
[1644665378230,0.00291807,42229.0,42228.0,0.43995902]
[1644665378434,0.00291807,42229.0,42228.0,0.1438]
[1644665379277,0.00291807,42229.0,42228.0,0.07852185]
[1644665379681,0.00395652,42241.0,42230.0,0.809187]